bitfinex/quotes_SOLUSD_20250829
["timestamp","ask_amount","ask_price","bid_price","bid_amount"]
[1756465631363,20.24015374,207.37,207.28,26.0]
[1756465631565,38.74,207.34,207.3,19.56015374]
[1756465631862,38.74,207.34,207.3,20.26015374]
[1756465632044,3.97437721,207.4,207.33,19.56015374]
[1756465632238,42.75437721,207.41,207.37,19.56015374]
[1756465632466,42.75437721,207.41,207.34,0.7]
[1756465632467,42.75437721,207.41,207.36,19.56015374]
[1756465632757,19.56015374,207.38,207.32,0.7]
[1756465632967,38.78,207.37,207.32,20.26015374]
[1756465633352,63.84251169,207.37,207.3,45.56015374]
[1756465633553,63.84251169,207.37,207.3,50.38398203]
[1756465633860,3.97437721,207.4,207.33,19.56015374]
[1756465634055,38.8,207.37,207.35,19.56015374]
[1756465634250,38.8,207.37,207.34,19.56015374]
[1756465634456,38.8,207.37,207.34,0.7]
[1756465634840,38.8,207.37,207.34,20.26015374]
[1756465635163,38.8,207.38,207.35,0.7]
[1756465635546,19.56015374,207.39,207.35,0.7]
[1756465635750,38.78,207.38,207.33,19.56015374]
[1756465636051,19.56015374,207.34,207.3,0.7]
[1756465636260,19.56015374,207.33,207.3,0.7]
[1756465636455,3.97437721,207.38,207.31,0.7]
[1756465636647,38.78,207.37,207.32,19.56015374]
[1756465636854,38.78,207.37,207.33,0.7]
[1756465638070,24.38205153,207.39,207.33,0.7]
[1756465638361,38.76,207.4,207.36,19.56015374]
[1756465638659,38.76,207.4,207.36,20.26015374]
[1756465639051,38.76,207.4,207.36,0.7]
[1756465639539,19.56015374,207.38,207.32,129.58348529]
[1756465639739,25.061987,207.39,207.33,19.56015374]
[1756465640266,24.381987,207.39,207.33,19.56015374]
[1756465640465,43.58163884,207.4,207.34,19.56015374]
[1756465640769,19.56015374,207.37,207.3,0.7]
[1756465641066,38.76,207.36,207.3,0.7]
[1756465641263,38.76,207.36,207.3,20.26015374]
[1756465641469,38.76,207.36,207.31,19.56015374]
[1756465641771,38.76,207.36,207.31,20.26015374]
[1756465642194,43.58256028,207.36,207.34,0.03]
[1756465642557,20.24015374,207.35,207.34,0.03]
[1756465643243,20.38231531,207.35,207.34,0.03]
[1756465643570,25.20507875,207.35,207.34,0.03]
[1756465643770,26.0,207.32,207.31,0.03]
[1756465644075,88.46869342,207.32,207.31,0.03]
[1756465644260,89.14869342,207.32,207.31,0.03]
[1756465644965,69.58853968,207.32,207.31,0.03]
[1756465645169,89.14869342,207.32,207.31,0.03]
[1756465645766,93.97215473,207.32,207.31,0.03]
[1756465646963,90.00577662,207.32,207.31,0.03]
[1756465648268,93.97215473,207.32,207.31,0.03]
[1756465649378,54.49215473,207.32,207.31,0.03]
[1756465649587,93.87215473,207.32,207.31,0.03]
[1756465650083,93.87915164,207.32,207.31,0.03]
[1756465650385,97.84494471,207.32,207.31,0.03]
[1756465650569,111.22939259,207.32,207.21,13.59559401]
[1756465650779,19.56015374,207.26,207.22,0.69]
[1756465651070,38.7,207.25,207.22,0.69]
[1756465651272,3.97485989,207.31,207.24,13.59559401]
[1756465651582,3.97485989,207.31,207.25,0.69]
[1756465651583,38.7,207.3,207.25,0.69]
[1756465651960,3.97485989,207.37,207.3,13.59559401]
[1756465652160,38.72,207.36,207.31,0.69]
[1756465652378,58.28015374,207.36,207.32,0.69]
[1756465652686,38.72,207.36,207.33,0.69]
[1756465652869,38.72,207.36,207.34,0.69]
[1756465653072,8.85668506,207.4,207.35,0.69]
[1756465653377,38.72,207.39,207.36,0.69]
[1756465653686,58.28015374,207.39,207.33,20.25015374]
[1756465654198,38.72,207.39,207.33,20.25015374]
[1756465654400,38.72,207.39,207.34,13.59559401]
[1756465654691,38.72,207.39,207.35,0.69]
[1756465654889,19.62015374,207.4,207.35,0.69]
[1756465655084,19.62015374,207.4,207.34,13.59559401]
[1756465655085,0.06,207.4,207.36,20.25015374]
[1756465655382,19.56015374,207.37,207.31,0.69]
[1756465655571,19.56015374,207.34,207.29,13.59559401]
[1756465655774,19.56015374,207.32,207.28,15.191511]
[1756465656284,19.56015374,207.32,207.28,0.69]
[1756465656484,19.56015374,207.3,207.26,13.59559401]
[1756465656681,38.78,207.29,207.27,14.28559401]
[1756465657486,4.82330319,207.33,207.24,4.825118]
[1756465657487,19.56015374,207.3,207.28,0.69]
[1756465657690,58.32015374,207.31,207.28,0.69]
[1756465657985,19.56015374,207.29,207.28,0.69]
[1756465658170,38.76,207.31,207.25,4.82488717]
[1756465658171,58.32015374,207.31,207.25,19.56015374]
[1756465658365,58.32015374,207.31,207.29,0.69]
[1756465658685,38.76,207.33,207.31,13.59559401]
[1756465658891,38.76,207.33,207.32,0.69]
[1756465660991,19.56015374,207.34,207.32,0.69]
[1756465661193,38.72,207.34,207.32,5.51341188]
[1756465661498,0.06,207.4,207.33,33.84574775]
[1756465661702,0.06,207.4,207.38,13.59559401]
[1756465662091,0.06,207.4,207.39,14.28559401]
[1756465662596,0.06,207.4,207.39,19.10742727]
[1756465664511,0.06,207.4,207.39,38.66758101]
[1756465664809,0.06,207.4,207.39,14.28559401]
[1756465665701,0.06,207.4,207.39,38.66758101]
[1756465667402,0.06,207.4,207.39,64.66758101]
[1756465669181,0.06,207.4,207.39,45.10742727]
[1756465669508,0.06,207.4,207.39,64.66758101]
[1756465670805,0.06,207.4,207.39,45.10742727]
[1756465671310,0.06,207.4,207.39,64.66758101]
[1756465671609,0.06,207.4,207.39,45.10742727]
[1756465671808,0.06,207.4,207.39,143.16758101]
[1756465672406,0.06,207.4,207.39,117.16758101]
[1756465672795,0.06,207.4,207.39,97.60742727]
[1756465673000,0.06,207.4,207.39,117.16758101]
[1756465675011,0.06,207.49,207.4,78.44]
[1756465675214,0.06,207.49,207.45,33.15574775]
[1756465675510,0.06,207.49,207.47,13.59559401]
[1756465676915,0.06,207.49,207.48,18.41533567]
[1756465677099,0.06,207.49,207.48,19.10533567]
[1756465677507,0.06,207.49,207.48,38.66548941]
[1756465678018,0.06,207.49,207.48,19.10533567]
[1756465678207,0.06,207.49,207.48,18.41533567]
[1756465678415,0.06,207.49,207.48,13.59559401]
[1756465678416,20.34015374,207.49,207.48,13.59559401]
[1756465679018,20.34015374,207.49,207.46,13.59559401]
[1756465679213,19.56015374,207.47,207.46,13.59559401]
[1756465679430,19.56015374,207.47,207.42,18.41672986]
[1756465679598,19.56015374,207.45,207.42,13.59559401]
[1756465679797,19.56015374,207.47,207.43,0.69]
[1756465680112,58.94015374,207.49,207.44,13.59559401]
[1756465680426,19.62015374,207.49,207.43,33.15574775]
[1756465680636,0.06,207.49,207.46,13.59559401]
[1756465680916,0.06,207.49,207.48,13.59559401]
[1756465682921,0.06,207.49,207.48,64.64548941]
[1756465683421,0.06,207.49,207.48,45.08533567]
[1756465683804,0.06,207.49,207.48,64.64548941]
[1756465685804,0.06,207.49,207.48,64.78765098]
[1756465687599,0.06,207.49,207.48,103.36765098]
[1756465688020,0.06,207.49,207.48,83.80749724]
[1756465688227,0.06,207.49,207.48,103.32765098]
[1756465688523,0.06,207.49,207.48,64.78765098]
[1756465688723,0.06,207.49,207.48,103.32765098]
[1756465691620,0.06,207.49,207.48,181.76765098]
[1756465691821,1e-08,207.51,207.5,0.14216157]
[1756465692030,0.9,207.61,207.53,39.59559401]
[1756465692031,0.2,207.61,207.53,39.59559401]
[1756465692209,0.2,207.61,207.6,59.15574775]
[1756465692724,0.2,207.61,207.6,59.82574775]
[1756465692920,0.2,207.61,207.6,98.38574775]
[1756465693328,1e-08,207.61,207.6,98.40574775]
[1756465694008,1e-08,207.61,207.6,103.22270343]
[1756465695024,1e-08,207.61,207.6,44.41254969]
[1756465695232,1e-08,207.61,207.6,102.53270343]
[1756465695810,1e-08,207.61,207.6,78.15559401]
[1756465696128,1e-08,207.61,207.6,13.59559401]
[1756465696314,1e-08,207.61,207.6,37.97270343]
[1756465696726,1e-08,207.61,207.6,76.53270343]
[1756465696922,1e-08,207.61,207.6,77.01439899]
[1756465697124,1e-08,207.61,207.6,97.3867143]
[1756465697422,0.06,207.66,207.64,39.59559401]
[1756465697721,0.06,207.66,207.65,72.21732733]
[1756465697921,0.06,207.66,207.65,72.88732733]
[1756465698139,0.06,207.66,207.65,77.70312314]
[1756465698310,0.06,207.66,207.65,156.28528471]
[1756465698511,0.06,207.66,207.65,77.36370513]
[1756465698831,0.06,207.66,207.65,77.84528471]
[1756465699633,0.06,207.66,207.65,39.26528471]
[1756465699822,0.06,207.66,207.65,77.84528471]
[1756465700022,0.06,207.66,207.65,39.26528471]
[1756465700227,0.06,207.66,207.65,77.84528471]
[1756465700413,0.06,207.66,207.65,38.45312314]
[1756465700738,0.06,207.66,207.65,33.15574775]
[1756465701112,0.76,207.66,207.65,13.59559401]
[1756465701337,20.32015374,207.66,207.6,0.03]
[1756465701519,19.56015374,207.64,207.62,13.59559401]
[1756465701720,0.7,207.63,207.62,13.59559401]
[1756465702036,19.62015374,207.66,207.6,33.18574775]
[1756465702335,0.7,207.63,207.6,13.62559401]
[1756465704014,0.7,207.62,207.6,13.62559401]
[1756465704234,20.26015374,207.61,207.6,0.03]
[1756465704415,0.7,207.61,207.6,0.03]
[1756465705761,20.26015374,207.61,207.6,0.03]
[1756465706034,0.7,207.61,207.6,0.03]
[1756465706730,20.26015374,207.61,207.6,0.03]
[1756465711441,25.0768774,207.61,207.6,0.03]
[1756465711839,20.26015374,207.61,207.6,0.03]
[1756465712138,25.0768774,207.61,207.6,0.03]
[1756465712342,25.21903897,207.61,207.6,0.03]
[1756465712722,29.17248109,207.61,207.6,0.03]
[1756465712923,0.7,207.61,207.6,0.03]
[1756465713120,63.5968774,207.61,207.6,0.03]
[1756465713739,63.73903897,207.61,207.6,0.03]
[1756465715444,95.34100187,207.61,207.57,0.03]
[1756465715632,24.51973509,207.58,207.57,0.03]
[1756465715833,28.47317721,207.58,207.57,0.03]
[1756465716044,29.14317721,207.58,207.57,0.03]
[1756465718231,25.18973509,207.58,207.57,0.03]
[1756465718434,51.18973509,207.58,207.57,0.03]
[1756465721253,89.64973509,207.58,207.57,0.03]
[1756465721424,93.62395446,207.58,207.57,0.03]
[1756465721842,34.93380072,207.58,207.57,0.03]
[1756465722041,12.10180916,207.61,207.57,0.72]
[1756465722042,4.03421937,207.61,207.57,0.72]
[1756465722341,0.06,207.61,207.59,18.41278173]
[1756465722544,0.06,207.61,207.6,14.28559401]
[1756465723351,0.06,207.61,207.6,19.10254969]
[1756465723554,0.06,207.61,207.6,64.66270343]
[1756465724357,0.06,207.61,207.6,45.10254969]
[1756465725230,0.06,207.61,207.6,64.66270343]
[1756465725437,0.06,207.61,207.6,45.10254969]
[1756465725734,0.06,207.61,207.6,64.66270343]
[1756465726346,0.06,207.61,207.6,45.10254969]
[1756465727347,0.06,207.61,207.6,64.66270343]
[1756465727747,0.06,207.64,207.63,39.59559401]
[1756465727934,0.06,207.64,207.63,59.77953528]
[1756465728134,1e-08,207.66,207.64,13.73775558]
[1756465728349,1e-08,207.66,207.65,72.3394889]
[1756465728652,1e-08,207.66,207.65,73.0294889]
[1756465729645,1e-08,207.66,207.65,77.84528471]
[1756465729841,0.06,207.69,207.68,26.0]
[1756465730155,1e-08,207.7,207.69,13.73775558]
[1756465730358,1e-08,207.7,207.69,72.52790932]
[1756465730859,1e-08,207.71,207.7,33.29790932]
[1756465731032,1e-08,207.71,207.7,34.46937296]
[1756465731745,1e-08,207.71,207.7,39.28400945]
[1756465733158,1e-08,207.71,207.7,41.21353345]
[1756465733752,1e-08,207.71,207.7,79.21206981]
[1756465734058,1e-08,207.71,207.7,289.21206981]
[1756465734650,0.06,207.76,207.75,39.59559401]
[1756465734844,0.06,207.76,207.75,118.095594]
[1756465735340,0.06,207.76,207.75,138.34574774]
[1756465735542,0.06,207.76,207.75,118.095594]
[1756465735841,0.06,207.76,207.75,138.34574774]
[1756465736262,0.06,207.76,207.75,176.82574774]
[1756465736445,0.06,207.76,207.75,181.63922547]
[1756465736652,0.06,207.76,207.75,103.13922548]
[1756465742857,0.06,207.81,207.75,193.81508138]
[1756465743052,0.06,207.81,207.78,33.29790932]
[1756465743264,0.06,207.81,207.78,71.65790932]
[1756465743559,0.06,207.81,207.78,72.32790932]
[1756465744144,0.06,207.81,207.78,77.14069207]
[1756465744360,0.06,207.81,207.78,79.06956507]
[1756465747444,0.06,207.81,207.8,13.59559401]
[1756465747646,0.06,207.85,207.84,39.59559401]
[1756465747845,0.06,207.85,207.84,97.47574775]
[1756465748048,0.06,207.85,207.84,98.14574775]
[1756465748364,0.06,207.85,207.84,99.40424875]
[1756465748570,0.75,207.85,207.84,41.52409501]
[1756465748944,0.75,207.85,207.84,39.59559401]
[1756465749666,0.06,207.85,207.84,44.40698738]
[1756465749964,0.75,207.85,207.82,51.91559401]
[1756465750280,0.69,207.84,207.82,51.91559401]
[1756465750446,0.06,207.85,207.8,1.928873]
[1756465750447,12.37673458,207.83,207.8,1.928873]
[1756465750650,0.69,207.82,207.81,13.59559401]
[1756465750863,0.69,207.82,207.76,13.59559401]
[1756465751078,0.69,207.81,207.76,13.59559401]
[1756465751257,4.87119768,207.85,207.76,13.59559401]
[1756465751258,0.69,207.8,207.76,13.59559401]
[1756465751459,0.69,207.8,207.76,18.40872505]
[1756465751658,0.69,207.79,207.76,18.40872505]
[1756465751859,19.49294251,207.79,207.76,18.40872505]
[1756465752068,4.81141004,207.84,207.76,13.59559401]
[1756465752268,4.81141004,207.84,207.8,13.59559401]
[1756465752269,0.69,207.84,207.8,13.59559401]
[1756465752472,0.69,207.84,207.8,33.08853652]
[1756465752860,0.06,207.81,207.8,33.08853652]
[1756465753174,0.06,207.81,207.8,13.59559401]
[1756465753878,0.06,207.81,207.8,18.40791354]
[1756465756857,20.24294251,207.81,207.76,26.0]
[1756465757055,0.69,207.8,207.77,56.80859403]
[1756465757257,0.06,207.81,207.77,135.30859403]
[1756465757458,0.06,207.81,207.8,33.08853652]
[1756465757671,0.06,207.81,207.8,150.09069809]
[1756465757876,0.06,207.81,207.8,150.76069809]
[1756465758379,1e-08,207.81,207.8,155.57301762]
[1756465758575,1e-08,207.81,207.8,157.50142562]
[1756465761970,1e-08,207.81,207.8,137.25632154]
[1756465762171,1e-08,207.81,207.8,135.32791354]
[1756465762671,1e-08,207.81,207.8,154.82085605]
[1756465764481,1e-08,207.81,207.8,156.74972905]
[1756465764691,1e-08,207.81,207.8,157.56189062]
[1756465765290,0.06,207.85,207.84,39.59559401]
[1756465765585,0.06,207.85,207.84,97.44853652]
[1756465765787,0.06,207.85,207.84,102.92992989]
[1756465769291,1e-08,207.85,207.84,181.57209145]
[1756465770088,1e-08,207.85,207.84,180.90209145]
[1756465770265,1e-08,207.85,207.84,161.40914894]
[1756465770470,1e-08,207.85,207.84,180.75992988]
[1756465770868,0.69000001,207.85,207.84,96.90698737]
[1756465771984,0.69000001,207.85,207.84,18.40698738]
[1756465776092,1e-08,207.85,207.84,18.40698738]
[1756465776695,0.69000001,207.85,207.84,18.40698738]
[1756465777381,1e-08,207.85,207.84,18.40698738]
[1756465777696,1e-08,207.85,207.84,95.0442857]
[1756465777872,1e-08,207.85,207.84,173.68644726]
[1756465778067,0.06,207.86,207.84,173.68644726]
[1756465778068,1e-08,207.86,207.85,13.73775558]
[1756465778383,1e-08,207.86,207.85,26.57617008]
[1756465778890,1e-08,207.86,207.85,28.50429908]
[1756465779897,1e-08,207.86,207.85,33.31546097]
[1756465781387,1e-08,207.86,207.85,41.09174263]
[1756465782294,1e-08,207.88,207.87,39.73775558]
[1756465782495,3.97421937,208.0,207.87,39.73775558]
[1756465782496,1e-08,207.93,207.92,0.14216157]
[1756465782702,1e-08,207.93,207.92,72.13133556]
[1756465783094,1e-08,207.93,207.92,76.10555456]
[1756465784097,1e-08,207.93,207.92,80.91509669]
[1756465784402,0.2,208.02,208.0,13.59559401]
[1756465784583,0.2,208.02,208.01,71.29917399]
[1756465784900,0.2,208.02,208.01,71.33917399]
[1756465785400,0.2,208.02,208.01,76.08741839]
[1756465785607,0.89,208.02,208.01,56.62383841]
[1756465786279,0.2,208.02,208.01,56.62383841]
[1756465786594,0.2,208.02,208.01,80.89487956]
[1756465787678,0.2,208.02,208.01,81.70704113]
[1756465787878,0.69,208.09,208.05,39.59559401]
[1756465788100,0.69,208.09,208.07,13.59559401]
[1756465788708,0.69,208.08,208.07,13.59559401]
[1756465788884,20.15357998,208.08,208.07,13.59559401]
[1756465789289,0.69,208.08,208.06,13.59559401]
[1756465789519,19.46357998,208.11,208.06,18.40172584]
[1756465789727,0.69,208.07,208.06,18.40172584]
[1756465790586,0.06,208.07,208.06,18.40172584]
[1756465791388,0.75,208.07,208.05,38.24]
[1756465791698,19.52357998,208.07,208.06,13.59559401]
[1756465792004,19.52357998,208.07,208.04,51.81559401]
[1756465792207,0.69,208.06,208.04,51.81559401]
[1756465792411,0.69,208.06,208.01,4.7482444]
[1756465792412,19.46357998,208.05,208.01,4.7482444]
[1756465792604,20.15357998,208.04,208.02,51.81559401]
[1756465792801,0.69,208.03,208.02,13.59559401]
[1756465793106,19.46357998,208.05,208.02,13.59559401]
[1756465793107,20.15357998,208.05,208.02,13.59559401]
[1756465793300,0.69,208.05,208.02,13.59559401]
[1756465793499,0.69,208.04,208.02,13.59559401]
[1756465794003,19.46357998,208.06,208.02,18.40272398]
[1756465794004,20.15357998,208.06,208.02,18.40272398]
[1756465794710,0.06,208.07,208.04,13.59559401]
[1756465794880,0.06,208.07,208.06,13.59559401]
[1756465795083,0.06,208.07,208.06,33.05917399]
[1756465796004,0.06,208.07,208.06,37.86547986]
[1756465796205,0.06,208.07,208.06,18.40189988]
[1756465798998,0.06,208.07,208.06,38.53547986]
[1756465799193,0.06,208.07,208.06,38.67764143]
[1756465799826,0.06,208.07,208.06,53.12537643]
[1756465801006,0.06,208.07,208.06,33.66179645]
[1756465801207,0.06,208.07,208.06,90.53321486]
[1756465801802,0.72,208.07,208.06,18.40189988]
[1756465801994,0.72,208.07,208.06,56.62189988]
[1756465802207,0.06,208.07,208.06,56.62189988]
[1756465802394,0.06,208.07,208.06,76.75547986]
[1756465802988,0.06,208.07,208.06,76.89764143]
[1756465803720,0.06,208.07,208.06,76.75547986]
[1756465804508,0.06,208.07,208.06,76.89764143]
[1756465804831,1e-08,208.07,208.06,76.89764143]
[1756465805121,0.66,208.18,208.11,0.14216157]
[1756465805414,0.66,208.18,208.13,33.05917399]
[1756465805714,0.66,208.17,208.15,13.59559401]
[1756465805902,20.12357998,208.19,208.17,13.59559401]
[1756465806100,20.12357998,208.18,208.15,13.59559401]
[1756465806301,20.12357998,208.17,208.15,13.59559401]
[1756465806515,0.66,208.16,208.15,13.59559401]
[1756465807709,0.66,208.16,208.13,18.40023516]
[1756465807895,0.66,208.15,208.13,51.79559401]
[1756465808094,19.46357998,208.17,208.13,51.79559401]
[1756465808301,0.66,208.15,208.13,56.60024784]
[1756465808916,4.80329833,208.2,208.13,13.59559401]
[1756465809106,20.12357998,208.14,208.11,13.59559401]
[1756465809306,19.46357998,208.12,208.11,13.59559401]
[1756465809507,20.12357998,208.12,208.1,13.59559401]
[1756465809713,20.12357998,208.11,208.1,13.59559401]
[1756465809913,20.12357998,208.11,208.09,13.59559401]
[1756465810316,20.12357998,208.11,208.09,92.09559401]
[1756465810822,20.12357998,208.11,208.09,96.90112845]
[1756465811016,19.46357998,208.13,208.09,97.57112845]
[1756465811230,20.12357998,208.14,208.09,97.57112845]
[1756465811426,38.00605297,208.23,208.11,13.59559401]
[1756465811615,0.66,208.17,208.13,13.59559401]
[1756465811933,0.66,208.2,208.16,4.80399692]
[1756465812149,0.66,208.2,208.08,13.59559401]
[1756465812150,0.66,208.16,208.08,13.59559401]
[1756465812337,19.46357998,208.12,208.08,51.81559401]
[1756465812541,4.80169019,208.26,208.15,13.59559401]
[1756465812839,0.66,208.24,208.21,13.59559401]
[1756465813462,0.66,208.24,208.19,13.59559401]
[1756465813739,0.66,208.23,208.17,19.46357998]
[1756465813929,0.66,208.26,208.22,13.59559401]
[1756465814527,0.66,208.26,208.22,18.39818496]
[1756465814915,3.97421937,208.34,208.22,37.86176494]
[1756465815114,20.12357998,208.3,208.23,19.46357998]
[1756465815315,19.56357998,208.28,208.22,76.89176494]
[1756465815659,20.22357998,208.28,208.22,76.22176494]
[1756465815859,0.76,208.28,208.23,19.46357998]
[1756465816025,0.1,208.28,208.23,24.26576349]
[1756465816218,0.66,208.27,208.23,4.80218351]
[1756465816722,19.56357998,208.28,208.23,5.47218351]
[1756465816922,0.1,208.28,208.25,13.59559401]
[1756465817252,19.46357998,208.26,208.12,4.80492023]
[1756465817549,19.46357998,208.17,208.14,14.443562]
[1756465817849,0.66,208.26,208.16,19.46357998]
[1756465818062,0.1,208.28,208.22,19.46357998]
[1756465818221,0.1,208.28,208.24,33.05917399]
[1756465818421,0.1,208.28,208.26,33.05917399]
[1756465818632,0.1,208.28,208.26,13.59559401]
[1756465819661,0.1,208.28,208.26,33.72917399]
[1756465819949,0.1,208.28,208.26,13.59559401]
[1756465821240,0.1,208.28,208.26,33.72917399]
[1756465821560,0.1,208.28,208.27,19.46357998]
[1756465821759,0.1,208.28,208.27,112.22917399]
[1756465822387,0.1,208.28,208.27,143.1727952]
[1756465823241,0.1,208.28,208.27,133.19873301]
[1756465823545,0.1,208.28,208.27,152.66231299]
[1756465824057,0.1,208.28,208.27,138.37133556]
[1756465824259,0.1,208.28,208.27,133.19873201]
[1756465824434,0.1,208.28,208.27,152.66231199]
[1756465824641,0.1,208.28,208.27,181.47063363]
[1756465824953,0.1,208.28,208.27,195.90446663]
[1756465825526,0.1,208.28,208.27,196.0466282]
[1756465826239,0.1,208.28,208.27,191.24516856]
[1756465826433,0.1,208.28,208.27,170.0466282]
[1756465827524,0.1,208.28,208.27,165.24516856]
[1756465827724,0.1,208.28,208.27,164.57516856]
[1756465827953,0.1,208.28,208.27,150.14133556]
[1756465828227,0.1,208.28,208.27,131.20559401]
[1756465828427,0.1,208.28,208.27,150.66917399]
[1756465828662,0.76,208.28,208.27,13.59559401]
[1756465828863,20.22357998,208.28,208.23,78.5]
[1756465829023,20.22357998,208.28,208.15,15.109391]
[1756465829024,19.46357998,208.24,208.15,15.109391]
[1756465829220,19.46357998,208.19,208.15,0.67]
[1756465829448,19.46357998,208.18,208.15,38.46]
[1756465829653,0.66,208.21,208.17,26.0]
[1756465829841,19.46357998,208.2,208.15,39.13]
[1756465830049,19.46357998,208.18,208.12,20.13357998]
[1756465830252,19.46357998,208.16,208.1,19.46357998]
[1756465830557,19.46357998,208.16,208.14,26.0]
[1756465830752,0.68,208.15,208.14,26.0]
[1756465831341,0.68,208.15,208.14,39.59559401]
[1756465831544,20.14357998,208.15,208.14,13.59559401]
[1756465831754,20.14357998,208.15,208.09,0.67]
[1756465831755,20.14357998,208.15,208.09,38.46]
[1756465832065,4.80378868,208.17,208.07,38.49]
[1756465832066,19.46357998,208.11,208.07,38.49]
[1756465832370,0.68,208.2,208.14,13.59559401]
[1756465832548,0.68,208.2,208.15,57.92357998]
[1756465833044,0.68,208.2,208.16,13.59559401]
[1756465833474,19.46357998,208.23,208.18,13.59559401]
[1756465833638,19.46357998,208.22,208.18,52.09559401]
[1756465833964,0.68,208.23,208.18,52.09559401]
[1756465834153,4.80189625,208.26,208.18,52.09559401]
[1756465834154,19.46357998,208.21,208.18,52.09559401]
[1756465834350,20.14357998,208.2,208.17,13.59559401]
[1756465834554,19.46357998,208.19,208.17,13.59559401]
[1756465834751,19.46357998,208.19,208.15,13.59559401]
[1756465834959,0.68,208.22,208.15,19.46357998]
[1756465835166,19.46357998,208.24,208.17,33.05917399]
[1756465835766,19.46357998,208.24,208.18,19.46357998]
[1756465836196,19.46357998,208.24,208.18,97.96357998]
[1756465837549,19.46357998,208.22,208.18,78.5]
[1756465837789,19.46357998,208.19,208.18,78.5]
[1756465838091,19.46357998,208.19,208.18,92.09559401]
[1756465838788,0.68,208.24,208.19,13.59559401]
[1756465838967,0.68,208.23,208.19,13.59559401]
[1756465839302,0.68,208.23,208.16,79.16]
[1756465839303,0.68,208.23,208.18,13.59559401]
[1756465839447,5.48173564,208.26,208.18,13.59559401]
[1756465839880,19.46357998,208.21,208.18,14.25559401]
[1756465840098,19.46357998,208.21,208.19,0.66]
[1756465840584,19.46357998,208.2,208.19,0.66]
[1756465840768,19.46357998,208.2,208.18,13.59559401]
[1756465841085,19.46357998,208.19,208.18,13.59559401]
[1756465841276,19.46357998,208.2,208.18,13.59559401]
[1756465842281,19.46357998,208.19,208.18,13.59559401]
[1756465842889,19.46357998,208.22,208.18,0.66]
[1756465843389,19.46357998,208.23,208.21,13.59559401]
[1756465844352,19.46357998,208.22,208.21,13.59559401]
[1756465844688,19.46357998,208.26,208.21,97.55841569]
[1756465844883,19.56357998,208.28,208.23,13.59559401]
[1756465845051,0.1,208.28,208.24,0.66]
[1756465845252,0.1,208.28,208.26,39.59559401]
[1756465846053,0.1,208.28,208.27,52.73559401]
[1756465846553,0.1,208.28,208.27,57.53705365]
[1756465846754,0.1,208.28,208.27,77.1427952]
[1756465847983,0.06,208.31,208.3,39.59559401]
[1756465848187,0.06,208.31,208.3,97.68133556]
[1756465848393,19.46357998,208.42,208.35,13.59559401]
[1756465848578,19.46357998,208.43,208.37,13.59559401]
[1756465848874,19.46357998,208.43,208.38,38.52]
[1756465849100,19.46357998,208.43,208.39,13.59559401]
[1756465849259,19.46357998,208.43,208.39,14.25559401]
[1756465849586,19.46357998,208.43,208.39,13.59559401]
[1756465849888,0.68,208.45,208.39,13.59559401]
[1756465850058,0.68,208.43,208.39,13.59559401]
[1756465850387,19.46357998,208.44,208.39,13.59559401]
[1756465850562,19.46357998,208.44,208.39,14.25559401]
[1756465850972,5.47662349,208.48,208.41,13.59559401]
[1756465851286,19.46357998,208.45,208.41,13.59559401]
[1756465851653,19.46357998,208.44,208.41,13.59559401]
[1756465851853,19.46357998,208.43,208.38,4.78161833]
[1756465852091,0.68,208.42,208.4,13.59559401]
[1756465852255,5.47841918,208.41,208.37,13.59559401]
[1756465852581,0.68,208.4,208.37,13.59559401]
[1756465852878,0.68,208.44,208.37,14.25559401]
[1756465853062,0.68,208.44,208.37,52.73559401]
[1756465853259,19.46357998,208.4,208.37,52.73559401]
[1756465853457,19.46357998,208.39,208.37,52.07559401]